bitfinex/quotes_BTCUSD_20251104
["timestamp","ask_amount","ask_price","bid_price","bid_amount"]
[1762250141649,0.57168248,103840.0,103830.0,0.02805636]
[1762250141862,0.001,103840.0,103830.0,0.04895636]
[1762250142031,0.001,103840.0,103830.0,0.0611581]
[1762250142228,0.001,103840.0,103830.0,0.04895636]
[1762250142457,0.001,103840.0,103830.0,0.02805636]
[1762250143098,0.87546555,103840.0,103830.0,0.02265578]
[1762250143299,0.89832555,103840.0,103830.0,0.00614578]
[1762250144591,1.26533903,103840.0,103830.0,0.00614578]
[1762250144789,1.29427565,103840.0,103830.0,0.00614578]
[1762250145575,1.29427565,103840.0,103830.0,0.00414578]
[1762250146287,1.29427565,103840.0,103800.0,0.00024152]
[1762250146288,0.19265966,103810.0,103800.0,0.00024152]
[1762250146543,0.31493873,103810.0,103800.0,0.00029005]
[1762250146744,0.33972873,103810.0,103800.0,0.00029005]
[1762250146951,0.36867129,103810.0,103800.0,0.00029005]
[1762250147359,0.34364806,103810.0,103800.0,0.00029005]
[1762250147570,0.68464806,103810.0,103800.0,0.00429005]
[1762250148689,0.68464806,103810.0,103800.0,0.00629005]
[1762250152557,1.38593742,103810.0,103800.0,0.00629005]
[1762250153200,0.68464806,103810.0,103800.0,0.00629005]
[1762250155552,1.38593742,103810.0,103800.0,0.00629005]
[1762250156348,0.68464806,103810.0,103800.0,0.00629005]
[1762250157605,1.38593742,103810.0,103800.0,0.00629005]
[1762250160209,1.40387407,103810.0,103800.0,0.00629005]
[1762250161446,1.44902264,103810.0,103800.0,0.00629005]
[1762250161652,0.20236739,103780.0,103750.0,0.026441]
[1762250161900,0.09547907,103770.0,103750.0,0.026441]
[1762250162093,0.3243631,103770.0,103750.0,0.026441]
[1762250162304,0.16058183,103770.0,103760.0,0.00233746]
[1762250162585,0.13579183,103770.0,103760.0,0.00233746]
[1762250163026,0.15123183,103770.0,103760.0,0.00233746]
[1762250163279,0.339803,103770.0,103760.0,0.00233746]
[1762250163470,0.14806907,103770.0,103760.0,0.00233746]
[1762250163684,0.14806907,103770.0,103760.0,0.00433746]
[1762250164341,0.3678,103770.0,103760.0,0.02008746]
[1762250164547,0.39259,103770.0,103760.0,0.02647739]
[1762250164753,0.39159,103770.0,103760.0,0.00433746]
[1762250165140,0.39259,103770.0,103760.0,0.00633746]
[1762250166113,0.58532393,103770.0,103760.0,0.00633746]
[1762250166307,0.48806907,103770.0,103760.0,0.00633746]
[1762250166636,0.680803,103770.0,103760.0,0.00633746]
[1762250167882,0.48806907,103770.0,103760.0,0.00633746]
[1762250168080,0.680803,103770.0,103760.0,0.00633746]
[1762250168297,0.48806907,103770.0,103760.0,0.00633746]
[1762250168706,0.680803,103770.0,103760.0,0.00633746]
[1762250168909,0.48806907,103770.0,103760.0,0.00633746]
[1762250169529,0.680803,103770.0,103760.0,0.00633746]
[1762250170376,0.48806907,103770.0,103760.0,0.00633746]
[1762250170561,0.341,103770.0,103760.0,0.02208746]
[1762250170796,0.3678,103770.0,103760.0,0.02208746]
[1762250171001,0.3678,103770.0,103760.0,0.00633746]
[1762250171176,0.76976839,103770.0,103760.0,0.00633746]
[1762250171580,0.79455839,103770.0,103760.0,0.00633746]
[1762250171786,0.98729232,103770.0,103760.0,0.00633746]
[1762250172222,1.41821565,103770.0,103760.0,0.00633746]
[1762250172640,1.01624726,103770.0,103760.0,0.00633746]
[1762250173256,1.43613501,103770.0,103760.0,0.00633746]
[1762250173454,1.43613501,103770.0,103760.0,0.00433746]
[1762250173876,1.43513501,103770.0,103760.0,0.00233746]
[1762250174268,1.43613501,103770.0,103760.0,0.00333746]
[1762250174674,1.43713501,103770.0,103760.0,0.00333746]
[1762250177226,1.44610003,103770.0,103760.0,0.00333746]
[1762250178065,0.42463932,103770.0,103760.0,0.00333746]
[1762250178294,1.44553003,103770.0,103760.0,0.00333746]
[1762250178506,1.2527961,103770.0,103760.0,0.00333746]
[1762250178716,0.79084269,103770.0,103760.0,0.01848746]
[1762250178921,1.04350069,103770.0,103760.0,0.00333746]
[1762250179132,0.44879837,103770.0,103760.0,0.00333746]
[1762250179347,1.25273515,103770.0,103760.0,0.00333746]
[1762250179557,0.45980676,103770.0,103760.0,0.03938746]
[1762250179775,0.02888343,103770.0,103760.0,0.06315729]
[1762250179984,0.02888343,103770.0,103760.0,0.25590979]
[1762250179985,0.002,103770.0,103760.0,0.25590979]
[1762250180414,0.002,103770.0,103760.0,0.35138886]
[1762250180859,0.001,103770.0,103760.0,0.35038886]
[1762250181035,0.00014602,103780.0,103760.0,0.35038886]
[1762250181244,0.00971314,103780.0,103770.0,0.0465]
[1762250181449,0.00971314,103780.0,103770.0,0.27528407]
[1762250182020,0.00971314,103780.0,103770.0,0.30177392]
[1762250182021,0.00014602,103780.0,103770.0,0.30177392]
[1762250182224,0.00014602,103780.0,103770.0,0.27528407]
[1762250183046,0.00114602,103780.0,103770.0,0.27528407]
[1762250183487,0.00314602,103780.0,103770.0,0.27528407]
[1762250183967,0.00114602,103780.0,103770.0,0.27528407]
[1762250184184,0.00014602,103780.0,103770.0,0.31146635]
[1762250184401,0.00114602,103780.0,103770.0,0.31446635]
[1762250184630,0.00114602,103780.0,103770.0,0.31646635]
[1762250184851,0.00114602,103780.0,103770.0,0.66646634]
[1762250185074,0.03558,103820.0,103810.0,0.19265966]
[1762250185277,0.03842222,103820.0,103810.0,0.25679176]
[1762250185782,0.07775222,103820.0,103810.0,0.24164176]
[1762250185997,0.07775222,103820.0,103810.0,0.0489821]
[1762250186204,0.0707802,103820.0,103810.0,0.0385321]
[1762250186412,0.86760074,103820.0,103790.0,0.22323118]
[1762250186832,0.16625927,103820.0,103790.0,0.22323118]
[1762250187010,0.86760074,103820.0,103790.0,0.22323118]
[1762250187193,0.02422,103810.0,103790.0,0.20233118]
[1762250187392,0.01794405,103810.0,103800.0,0.19267822]
[1762250187593,0.3724502,103820.0,103800.0,0.27031916]
[1762250187800,0.0344502,103820.0,103810.0,0.23752562]
[1762250187979,0.0324502,103820.0,103810.0,0.21825966]
[1762250188176,0.0294502,103820.0,103810.0,0.21825966]
[1762250188387,0.0180902,103820.0,103810.0,0.21825966]
[1762250188604,0.0180902,103820.0,103810.0,0.27515045]
[1762250189198,0.00214615,103820.0,103810.0,0.29605045]
[1762250190045,0.00214615,103820.0,103810.0,0.29705045]
[1762250190254,0.00614615,103820.0,103810.0,0.29705045]
[1762250190865,0.00614615,103820.0,103810.0,0.10439079]
[1762250191072,0.00614615,103820.0,103810.0,0.29705045]
[1762250193240,0.00614615,103820.0,103810.0,0.29487657]
[1762250194646,0.00614615,103820.0,103810.0,0.08131691]
[1762250194853,0.00579121,103820.0,103810.0,0.08131691]
[1762250195053,0.00579121,103820.0,103810.0,0.29270657]
[1762250195468,0.70713268,103820.0,103810.0,0.29270657]
[1762250195693,0.70713268,103820.0,103810.0,0.44010657]
[1762250196377,0.00579121,103820.0,103810.0,0.44010657]
[1762250196816,0.00579121,103820.0,103810.0,0.42137657]
[1762250197722,0.00579121,103820.0,103810.0,0.44010657]
[1762250198309,0.00579121,103820.0,103810.0,0.29270657]
[1762250199595,0.34579121,103820.0,103810.0,0.27397657]
[1762250201337,0.34579121,103820.0,103810.0,0.29270657]
[1762250201551,0.00579121,103820.0,103810.0,0.29270657]
[1762250201763,0.00024146,103850.0,103840.0,0.192604]
[1762250201978,0.00024146,103850.0,103840.0,0.34252573]
[1762250202233,0.00024146,103850.0,103840.0,0.07317266]
[1762250202443,1.04158293,103850.0,103840.0,0.05444266]
[1762250202657,0.70158293,103850.0,103840.0,0.05444266]
[1762250202869,1.09173293,103850.0,103840.0,0.03852266]
[1762250203076,0.34,103840.0,103830.0,0.01873]
[1762250203571,0.34,103840.0,103830.0,0.01592]
[1762250203778,0.37845,103840.0,103820.0,0.29772109]
[1762250204627,0.37845,103840.0,103830.0,0.19262255]
[1762250205659,1.07979147,103840.0,103820.0,0.19264107]
[1762250205867,1.04134147,103840.0,103830.0,0.001]
[1762250206279,1.05664147,103840.0,103830.0,0.001]
[1762250206505,1.08009147,103840.0,103820.0,0.25888111]
[1762250206726,0.05023,103830.0,103820.0,0.06624129]
[1762250206903,0.05023,103830.0,103820.0,0.25988239]
[1762250207128,0.05023,103830.0,103820.0,0.06724129]
[1762250207331,0.05023,103830.0,103820.0,0.21464129]
[1762250207577,1.09157147,103830.0,103820.0,0.21464129]
[1762250208210,1.09157147,103830.0,103820.0,0.06624129]
[1762250208426,1.09157147,103830.0,103810.0,0.26745955]
[1762250208678,1.09257147,103830.0,103820.0,0.1976411]
[1762250208899,0.39123,103830.0,103820.0,0.1976411]
[1762250209129,0.341,103830.0,103820.0,0.2087011]
[1762250209349,0.34,103830.0,103820.0,0.32291017]
[1762250209565,0.37539146,103850.0,103840.0,0.192604]
[1762250209989,0.39069146,103850.0,103840.0,0.192604]
[1762250210468,0.02724146,103850.0,103840.0,0.192604]
[1762250210700,0.01194146,103850.0,103840.0,0.208664]
[1762250210886,0.02724146,103850.0,103840.0,0.01606]
[1762250211095,0.93719883,103850.0,103840.0,0.02273944]
[1762250211311,0.96164883,103850.0,103840.0,0.02273944]
[1762250211670,0.96364883,103850.0,103840.0,0.02273944]
[1762250211981,0.96364883,103850.0,103840.0,0.21534344]
[1762250212185,0.35494146,103850.0,103840.0,0.23140344]
[1762250212802,0.37024146,103850.0,103840.0,0.21534344]
[1762250212962,0.36924146,103850.0,103840.0,0.21534344]
[1762250213156,0.36724146,103850.0,103840.0,0.21534344]
[1762250213575,0.39069146,103850.0,103840.0,0.02273944]
[1762250213782,0.39069146,103850.0,103840.0,0.21534344]
[1762250214023,0.39069146,103850.0,103840.0,0.02273944]
[1762250214429,0.39069146,103850.0,103840.0,0.02373944]
[1762250215067,0.34024146,103850.0,103840.0,0.23240344]
[1762250215270,0.00024146,103850.0,103840.0,0.38279479]
[1762250215920,0.00024146,103850.0,103840.0,0.53019479]
[1762250216947,0.00024146,103850.0,103840.0,0.53219479]
[1762250217155,0.00024146,103850.0,103840.0,0.40479477]
[1762250217383,0.00024146,103850.0,103840.0,0.43042706]
[1762250217590,0.00024146,103850.0,103840.0,0.40379477]
[1762250217800,0.00124146,103850.0,103840.0,0.40679477]
[1762250219698,0.00124146,103850.0,103840.0,0.39679478]
[1762250219928,0.00124146,103850.0,103840.0,0.40679477]
[1762250222268,0.00124146,103850.0,103840.0,0.39679478]
[1762250222539,0.00124146,103850.0,103840.0,0.40679477]
[1762250223397,0.00124146,103850.0,103840.0,0.43342706]
[1762250223612,0.00124146,103850.0,103840.0,0.58082706]
[1762250224063,0.00124146,103850.0,103840.0,0.61539582]
[1762250224910,0.00124146,103850.0,103840.0,0.58082706]
[1762250225124,0.00124146,103850.0,103840.0,0.55419477]
[1762250226612,0.00124146,103850.0,103840.0,0.65425251]
[1762250226829,0.00983406,103880.0,103870.0,0.19254837]
[1762250227029,0.00983406,103880.0,103870.0,0.25342831]
[1762250227030,0.00014085,103880.0,103870.0,0.25342831]
[1762250227241,0.34014085,103880.0,103870.0,0.25342831]
[1762250227885,0.34414085,103880.0,103870.0,0.27315831]
[1762250228316,0.00414085,103880.0,103870.0,0.27315831]
[1762250229237,0.00614085,103880.0,103870.0,0.33597288]
[1762250229448,0.03842952,103910.0,103900.0,0.19249278]
[1762250229661,0.01000254,103910.0,103900.0,0.24972161]
[1762250229881,0.01000254,103910.0,103900.0,0.27188161]
[1762250230532,0.35200254,103910.0,103900.0,0.27188161]
[1762250230744,0.00548699,103910.0,103900.0,0.27288161]
[1762250230960,0.00548699,103910.0,103900.0,0.08038883]
[1762250231177,0.00548699,103910.0,103900.0,0.27288161]
[1762250231398,0.91544436,103910.0,103900.0,0.06165883]
[1762250231629,0.92692436,103910.0,103900.0,0.06165883]
[1762250231835,0.92492436,103910.0,103900.0,0.06165883]
[1762250232044,0.9347567,103910.0,103900.0,0.06165883]
[1762250232249,0.9357567,103910.0,103900.0,0.25415161]
[1762250232676,0.9242767,103910.0,103900.0,0.25415161]
[1762250232888,0.35131933,103910.0,103900.0,0.27188161]
[1762250233097,0.35276647,103910.0,103900.0,0.27188161]
[1762250233966,0.35276647,103910.0,103900.0,0.25315161]
[1762250234164,0.35276647,103910.0,103900.0,0.06065883]
[1762250234376,0.35276647,103910.0,103900.0,0.25315161]
[1762250234586,0.35276647,103910.0,103900.0,0.27188161]
[1762250235488,0.35276647,103910.0,103900.0,0.25315161]
[1762250236325,0.35276647,103910.0,103900.0,0.27188161]
[1762250236551,0.35276647,103910.0,103900.0,0.41928161]
[1762250236769,0.34293413,103910.0,103900.0,0.41928161]
[1762250236971,0.00293413,103910.0,103900.0,0.41928161]
[1762250237404,0.00293413,103910.0,103900.0,0.30806389]
[1762250237862,0.00293413,103910.0,103900.0,0.33469618]
[1762250238070,0.00293413,103910.0,103900.0,0.30806389]
[1762250238511,0.00193413,103910.0,103900.0,0.06065883]
[1762250238727,0.5718915,103910.0,103900.0,0.25315161]
[1762250239191,0.00193413,103910.0,103900.0,0.27188161]
[1762250239409,0.00193413,103910.0,103900.0,0.27388161]
[1762250242212,0.00193413,103910.0,103900.0,0.25515161]
[1762250242423,0.5718915,103910.0,103900.0,0.25515161]
[1762250243030,0.5718915,103910.0,103900.0,0.27388161]
[1762250243198,0.5718915,103910.0,103900.0,0.25515161]
[1762250243607,0.5718915,103910.0,103900.0,0.27388161]
[1762250243767,0.00193413,103910.0,103900.0,0.27388161]
[1762250244149,0.5718915,103910.0,103900.0,0.27388161]
[1762250244313,0.00193413,103910.0,103900.0,0.27388161]
[1762250246959,0.00193413,103910.0,103900.0,0.31006389]
[1762250248392,0.00193413,103910.0,103900.0,0.45746389]
[1762250258922,0.00193413,103910.0,103900.0,0.49203265]
[1762250260403,0.0004,103920.0,103910.0,0.22865653]
[1762250260638,0.00054601,103920.0,103910.0,0.43728452]
[1762250261098,0.00054601,103920.0,103910.0,0.58468452]
[1762250261325,0.0004,103930.0,103920.0,0.22863801]
[1762250261543,0.66543644,103970.0,103950.0,0.20202019]
[1762250261758,0.36890049,103960.0,103950.0,0.20202019]
[1762250261964,0.3868998,103960.0,103950.0,0.24146247]
[1762250262203,0.4028198,103960.0,103950.0,0.24146247]
[1762250262412,0.4028198,103960.0,103950.0,0.03944228]
[1762250263253,0.4028198,103960.0,103950.0,0.23184247]
[1762250263476,0.4258898,103960.0,103950.0,0.03944228]
[1762250263898,0.4258898,103960.0,103950.0,0.24688247]
[1762250263899,0.0488998,103960.0,103950.0,0.24688247]
[1762250264113,0.3888998,103960.0,103950.0,0.24688247]
[1762250264332,0.35999931,103960.0,103950.0,0.24688247]
[1762250264758,0.36399931,103960.0,103950.0,0.24688247]
[1762250265383,0.346,103960.0,103950.0,0.24688247]
[1762250265638,0.91595737,103960.0,103950.0,0.24688247]
[1762250266028,0.91595737,103960.0,103950.0,0.26990247]
[1762250266664,0.90995737,103960.0,103950.0,0.26990247]
[1762250266892,0.341,103960.0,103950.0,0.26990247]
[1762250267092,0.343,103960.0,103950.0,0.26990247]
[1762250268582,0.91295737,103960.0,103950.0,0.26990247]
[1762250268794,0.92913737,103960.0,103950.0,0.03944228]
[1762250269011,0.34,103950.0,103930.0,0.21426796]
[1762250269217,0.3678,103950.0,103940.0,0.1924187]
[1762250269430,0.3578,103950.0,103930.0,0.23728796]
[1762250269862,0.34162,103950.0,103930.0,0.23728796]
[1762250270093,0.34162,103950.0,103930.0,0.28026233]
[1762250270506,0.56995737,103940.0,103930.0,0.28026233]
[1762250270729,0.58157737,103950.0,103940.0,0.2314887]
[1762250270944,0.01162,103950.0,103940.0,0.2314887]
[1762250271149,0.59885925,103960.0,103950.0,0.19240019]
[1762250271356,0.94267558,103970.0,103960.0,0.19238168]
[1762250271558,0.94888176,103970.0,103960.0,0.19238168]
[1762250271758,0.96650766,103970.0,103960.0,0.19238168]
[1762250272174,0.00159188,103970.0,103960.0,0.23145168]
[1762250273233,0.00559188,103970.0,103960.0,0.23145168]
[1762250273440,0.00559188,103970.0,103960.0,0.28762366]
[1762250273683,0.00159188,103970.0,103960.0,0.28762366]
[1762250274100,0.00359188,103970.0,103960.0,0.28762366]
[1762250274308,0.00459188,103970.0,103960.0,0.28762366]
[1762250278201,0.70356809,103970.0,103960.0,0.26460366]
[1762250278649,0.00459188,103970.0,103960.0,0.28762366]
[1762250280154,0.70356809,103970.0,103960.0,0.26460366]
[1762250281156,0.70356809,103970.0,103960.0,0.28762366]
[1762250281982,0.70356809,103970.0,103960.0,0.26460366]
[1762250282183,0.70356809,103970.0,103960.0,0.05617198]
[1762250282184,1.08243809,103970.0,103960.0,0.05617198]
[1762250282388,0.34,103960.0,103950.0,0.23478866]
[1762250282595,1.03897621,103960.0,103950.0,0.23478866]
[1762250282815,1.03897621,103960.0,103950.0,0.27385866]
[1762250283730,1.03897621,103960.0,103950.0,0.08145889]
[1762250283896,1.03897621,103960.0,103950.0,0.05843889]
[1762250284414,1.05515621,103960.0,103950.0,0.23478908]
[1762250284791,1.07784621,103960.0,103940.0,0.19241618]
[1762250285022,0.74946621,103950.0,103940.0,0.19241618]
[1762250285231,1.03897621,103960.0,103950.0,0.19240019]
[1762250285651,0.003,103960.0,103950.0,0.32694926]
[1762250285860,0.003,103960.0,103950.0,0.36313154]
[1762250286094,0.003,103960.0,103950.0,0.43342631]
[1762250286315,0.004,103960.0,103950.0,0.43342631]
[1762250286530,0.00014598,103970.0,103960.0,0.22856396]
[1762250286746,0.00014598,103970.0,103960.0,0.26763396]
[1762250288652,0.00314598,103970.0,103960.0,0.26763396]
[1762250288861,0.00314598,103970.0,103960.0,0.33021476]
[1762250289068,0.00559188,103970.0,103960.0,0.33021476]
[1762250289467,0.00559188,103970.0,103960.0,0.47761476]
[1762250291154,0.00559188,103970.0,103960.0,0.44143248]
[1762250291362,0.00559188,103970.0,103960.0,0.33021476]
[1762250296254,0.32559188,103990.0,103980.0,0.21957468]
[1762250296459,0.34946245,103990.0,103980.0,0.05330218]
[1762250296619,0.38892245,103990.0,103980.0,0.04119218]
[1762250296820,0.8866761,103990.0,103980.0,0.04119218]
[1762250297038,1.07900228,103990.0,103980.0,0.04119218]
[1762250297239,1.07900228,103990.0,103970.0,0.01211]
[1762250297446,1.07900228,103990.0,103960.0,0.29930156]
[1762250297447,0.71560621,103980.0,103960.0,0.29930156]
[1762250297644,0.73362678,103980.0,103960.0,0.29930156]
[1762250297858,0.22699612,103980.0,103960.0,0.0973008]
[1762250298065,0.22699612,103980.0,103950.0,0.29741362]
[1762250298066,0.81693528,103970.0,103950.0,0.29741362]
[1762250298272,0.34,103960.0,103950.0,0.27494991]
[1762250298504,0.0288984,103970.0,103960.0,0.23011168]
[1762250298886,0.00585,103990.0,103980.0,0.19234468]
[1762250298887,0.34585,103990.0,103980.0,0.19234468]
[1762250299155,0.34585,103990.0,103980.0,0.05057918]
[1762250299156,0.4093925,103990.0,103980.0,0.05057918]
[1762250299362,1.13119871,103990.0,103980.0,0.03846918]
[1762250299564,1.22667778,103990.0,103980.0,0.03846918]
[1762250300839,1.22667778,103990.0,103980.0,0.23081386]
[1762250301012,1.20384778,103990.0,103980.0,0.23081386]
[1762250301176,1.20384778,103990.0,103980.0,0.03846918]
[1762250301376,1.22667778,103990.0,103980.0,0.03846918]
[1762250301595,1.11436871,103990.0,103980.0,0.23081386]
[1762250301790,1.11485044,103990.0,103980.0,0.23081386]
[1762250302193,0.05924423,103990.0,103980.0,0.24593386]
[1762250302429,0.02450362,103990.0,103980.0,0.26854386]
[1762250303609,0.01850362,103990.0,103980.0,0.26854386]
[1762250304032,0.02050362,103990.0,103980.0,0.26854386]
[1762250304237,0.02050362,103990.0,103980.0,0.24593386]
[1762250304434,0.36050362,103990.0,103980.0,0.26854386]
[1762250305637,0.02050362,103990.0,103980.0,0.26854386]
[1762250305836,0.36050362,103990.0,103980.0,0.26854386]
[1762250310665,0.02050362,103990.0,103980.0,0.26854386]
[1762250310835,0.00248173,103990.0,103980.0,0.30472614]
[1762250311449,0.00048173,103990.0,103980.0,0.30472614]
[1762250311885,0.01663173,103990.0,103980.0,0.23081386]
[1762250312067,0.01663173,103990.0,103980.0,0.26538262]
[1762250312068,0.02248173,103990.0,103980.0,0.26538262]
[1762250312265,0.02248173,103990.0,103980.0,0.23081386]
[1762250312941,0.00633173,103990.0,103980.0,0.24736386]
[1762250313150,0.00633173,103990.0,103980.0,0.27184386]
[1762250313594,0.00048173,103990.0,103980.0,0.27184386]
[1762250314294,0.00633173,103990.0,103980.0,0.28193262]
[1762250314512,0.00633173,103990.0,103980.0,0.30641262]
[1762250315134,0.00633173,103990.0,103980.0,0.28193262]
[1762250315804,0.00633173,103990.0,103980.0,0.3181149]
[1762250316225,0.00048173,103990.0,103980.0,0.3425949]
[1762250316860,0.00048173,103990.0,103980.0,0.3944133]
[1762250318373,0.00048173,103990.0,103980.0,0.3994133]
[1762250318755,0.00048173,103990.0,103980.0,0.3475949]
[1762250320366,1e-08,103990.0,103980.0,0.3475949]
[1762250320626,1e-08,103990.0,103980.0,0.3994133]
[1762250321960,0.00485001,104000.0,103990.0,0.25636846]
[1762250322160,0.00485001,104000.0,103990.0,0.41215248]
[1762250322520,0.00485001,104000.0,103990.0,0.47120124]
[1762250323331,0.00485001,104000.0,103990.0,0.47420124]
[1762250324360,0.0004,104010.0,104000.0,0.19230769]
[1762250324563,0.22154087,104020.0,104010.0,0.1922892]
[1762250324771,0.22202729,104020.0,104010.0,0.23074889]
[1762250324970,0.26034962,104020.0,104010.0,0.23074889]
[1762250325173,0.27104962,104020.0,104010.0,0.23074889]
[1762250326348,0.27104962,104020.0,104010.0,0.03845969]
[1762250326602,0.97002583,104020.0,104010.0,0.03845969]
[1762250326817,0.77080496,104020.0,104010.0,0.23074889]
[1762250327271,0.05150875,104020.0,104010.0,0.32622796]
[1762250327482,0.02262835,104020.0,104010.0,0.32622796]
[1762250327703,0.01192835,104020.0,104010.0,0.35345796]
[1762250327929,0.01265066,104020.0,104010.0,0.41243024]
[1762250328770,0.00989439,104030.0,104020.0,0.22845299]
[1762250329028,0.00989439,104030.0,104020.0,0.32707309]
[1762250329257,0.02059439,104030.0,104020.0,0.28892309]
[1762250329504,0.00989439,104030.0,104020.0,0.32707309]
[1762250332310,0.0004,104030.0,104020.0,0.32707309]
[1762250332522,0.0004,104030.0,104020.0,0.33307309]
[1762250333380,0.00585,104040.0,104030.0,0.22843451]
[1762250333588,0.00585,104040.0,104030.0,0.42646611]
[1762250334438,0.34585,104040.0,104030.0,0.42646611]
[1762250334681,0.34585,104040.0,104030.0,0.39028383]
[1762250334902,0.34633139,104040.0,104030.0,0.42646611]
[1762250335543,0.34633139,104040.0,104030.0,0.42946611]
[1762250335971,0.91411757,104040.0,104030.0,0.42946611]
[1762250337008,0.92389436,104040.0,104030.0,0.42946611]
[1762250337449,0.92389436,104040.0,104030.0,0.42936611]
[1762250338375,1.15566462,104040.0,104030.0,0.42936611]
[1762250339019,1.14981462,104040.0,104030.0,0.42936611]
[1762250339427,0.35025818,104040.0,104030.0,0.42936611]
[1762250339631,0.7500364,104040.0,104030.0,0.42936611]
[1762250340245,0.35025818,104040.0,104030.0,0.42936611]
[1762250340461,0.00485,104060.0,104050.0,0.19221528]
[1762250340673,0.01453201,104060.0,104050.0,0.38954993]
[1762250340882,0.01453201,104060.0,104050.0,0.41233993]
[1762250340883,0.41431023,104060.0,104050.0,0.41233993]
[1762250341097,0.00968201,104060.0,104050.0,0.41233993]
[1762250341302,0.40946023,104060.0,104050.0,0.41233993]
[1762250341510,0.41431023,104060.0,104050.0,0.41233993]
[1762250341712,0.41431023,104060.0,104050.0,0.38954993]
[1762250342335,0.01653201,104060.0,104050.0,0.41233993]
[1762250342755,0.01453201,104060.0,104050.0,0.41233993]
[1762250343405,0.01453201,104060.0,104050.0,0.38954993]
[1762250344056,0.01453201,104060.0,104050.0,0.41233993]
[1762250344929,0.58216225,104060.0,104050.0,0.38954993]
[1762250345155,0.94356225,104060.0,104050.0,0.32613765]
[1762250345364,0.97242867,104060.0,104050.0,0.32613765]
[1762250345996,0.97290992,104060.0,104050.0,0.32613765]
[1762250346856,0.38387968,104060.0,104050.0,0.35336765]
[1762250347491,0.95150992,104060.0,104050.0,0.41233993]
[1762250347709,0.01016326,104060.0,104050.0,0.41233993]
[1762250348137,0.01016326,104060.0,104050.0,0.38954993]
[1762250348351,0.5933435,104060.0,104050.0,0.37418993]
[1762250348570,0.5826435,104060.0,104050.0,0.41233993]
[1762250349185,0.01501326,104060.0,104050.0,0.41233993]
[1762250349799,0.01501326,104060.0,104050.0,0.38954993]
[1762250350037,0.5826435,104060.0,104050.0,0.38954993]
[1762250351447,0.5933435,104060.0,104050.0,0.37418993]
[1762250352092,0.5826435,104060.0,104050.0,0.38954993]
[1762250352544,0.5826435,104060.0,104050.0,0.41233993]
[1762250352952,0.01501326,104060.0,104050.0,0.41933993]
[1762250353154,0.5826435,104060.0,104050.0,0.41933993]
[1762250353375,0.01501326,104060.0,104050.0,0.41933993]
[1762250355826,0.02571326,104060.0,104050.0,0.36931993]
[1762250356031,0.5933435,104060.0,104050.0,0.36931993]
[1762250356239,0.5933435,104060.0,104050.0,0.39755993]
[1762250356460,0.01016326,104060.0,104050.0,0.43212869]
[1762250356670,0.01016326,104060.0,104050.0,0.45523869]
[1762250356880,0.5826435,104060.0,104050.0,0.43212869]
[1762250357294,0.9440435,104060.0,104050.0,0.33313765]
[1762250358135,0.37641326,104060.0,104050.0,0.33313765]
[1762250358348,0.9440435,104060.0,104050.0,0.33313765]
[1762250358558,0.9333435,104060.0,104050.0,0.33313765]
[1762250359605,0.9440435,104060.0,104050.0,0.33313765]
[1762250360034,0.9440435,104060.0,104050.0,0.23765858]
[1762250360253,0.97291251,104060.0,104050.0,0.23765858]
[1762250360461,0.97291251,104060.0,104050.0,0.007]
[1762250360900,0.97291251,104060.0,104050.0,0.19921528]
[1762250361367,0.97291251,104060.0,104050.0,0.007]
[1762250361970,1.16510931,104060.0,104050.0,0.007]
[1762250362208,0.97291251,104060.0,104050.0,0.007]
[1762250362449,1.79705274,104060.0,104050.0,0.007]
[1762250363345,0.53221584,104050.0,104030.0,0.28886613]
[1762250363588,1.21612367,104040.0,104030.0,0.28886613]
[1762250363823,0.82696578,104040.0,104030.0,0.28886613]
[1762250364051,0.85584171,104040.0,104030.0,0.25429737]
[1762250364502,0.62415514,104040.0,104030.0,0.25429737]
[1762250364724,0.62415514,104040.0,104030.0,0.23142623]
[1762250365210,0.62415514,104040.0,104030.0,0.25078476]
[1762250365415,0.62415514,104040.0,104030.0,0.05853253]
[1762250365651,0.62415514,104040.0,104030.0,0.25078476]
[1762250366113,0.62415514,104040.0,104030.0,0.05253253]
[1762250366356,0.34,104030.0,104020.0,0.27865787]
[1762250366592,0.92942921,104030.0,104020.0,0.27865787]
[1762250367450,0.95930569,104030.0,104020.0,0.28465787]
[1762250367656,0.95930569,104030.0,104020.0,0.23483947]
[1762250368304,0.95930569,104030.0,104020.0,0.28665787]
[1762250368516,0.95930569,104030.0,104020.0,0.34506193]
[1762250369202,0.95930569,104030.0,104020.0,0.23483947]
[1762250370338,0.95930569,104030.0,104020.0,0.04256876]
[1762250370786,0.95930569,104030.0,104020.0,0.20596833]
[1762250371008,0.95930569,104030.0,104020.0,0.01369762]
[1762250371261,0.02625,104020.0,104010.0,0.0518184]
[1762250371502,1.02975828,104020.0,104010.0,0.02537415]
[1762250371728,1.02975828,104020.0,104010.0,0.21766335]
[1762250373099,1.02975828,104020.0,104010.0,0.02537415]
[1762250373312,0.46272907,104020.0,104010.0,0.22266335]
[1762250373533,1.03075828,104020.0,104010.0,0.22266335]
[1762250373802,1.03075828,104020.0,104010.0,0.03037415]
[1762250374020,1.03075828,104020.0,104010.0,0.005]
[1762250374021,1.22302899,104020.0,104010.0,0.005]
[1762250374958,0.3507,104010.0,104000.0,0.18730769]
[1762250375175,0.3507,104010.0,104000.0,0.19279411]
[1762250375441,0.3614,104010.0,104000.0,0.19279411]
[1762250375661,0.39028566,104010.0,104000.0,0.19279411]
[1762250375890,0.39028566,104010.0,104000.0,0.04610152]
[1762250376104,1.15060407,104010.0,104000.0,0.00048642]
[1762250376323,0.95831487,104010.0,104000.0,0.00048642]
[1762250376530,1.15160407,104010.0,104000.0,0.00848642]
[1762250376990,0.90802921,104000.0,103990.0,0.24297217]
[1762250377241,0.91872921,104000.0,103990.0,0.29470625]
[1762250377426,0.92942921,104000.0,103990.0,0.26583511]
[1762250377874,0.92942921,104000.0,103990.0,0.11314849]
[1762250378082,0.92942921,104000.0,103990.0,0.30547467]
[1762250378295,0.92942921,104000.0,103990.0,0.11714849]
[1762250378509,1.68976611,104000.0,103990.0,0.01374197]
[1762250378719,1.69076611,104000.0,103990.0,0.00614596]
[1762250379178,1.68976611,104000.0,103990.0,0.00414596]
[1762250379398,1.68976611,104000.0,103990.0,0.00214596]
[1762250379611,1.69076611,104000.0,103990.0,0.00214596]
[1762250379811,1.69076611,104000.0,103990.0,0.00014596]
[1762250380020,1.70873001,104000.0,103990.0,0.00099596]
[1762250380241,0.19232618,103990.0,103980.0,0.00184912]
[1762250380479,1.02490828,103990.0,103980.0,0.1941938]
[1762250380900,1.05380064,103990.0,103980.0,0.1941938]
[1762250381325,1.05380064,103990.0,103980.0,0.00184912]
[1762250381326,1.24612682,103990.0,103980.0,0.00184912]
[1762250381531,1.25012682,103990.0,103980.0,0.00184912]
[1762250382371,1.25112682,103990.0,103980.0,0.00184912]
[1762250382578,1.25112682,103990.0,103980.0,0.00132912]
[1762250382992,0.34,103970.0,103960.0,0.19891538]